Workbook

Sheet blad 1
C3: Naam
C4: Klas
C6: Verwachtte aantal verkochte broodjes 850 de prijs per broodje € 2,50
C8: omzet
C9: inkoopwaarde van de omzet | E9: 1275
C10: personeelskosten | E10: 120
C11: overige kosten | E11: 250
C13: brutowinst
C14: nettowinst

Sheet blad 2
X1: maak keuze
X2: maart
C3: Kandidaatnaam: | E3: ='blad 1'!D3 -> 0 | O3: blad 2 | X3: april
C4: Kandidaatnummer: | E4: ='blad 1'!D4 -> 0 | X4: mei
X5: juni
C6: Bedrijfsresultaten over de maanden maart - november 2021 | X6: juli
X7: augustus
X8: september
X9: oktober
X10: november
C42: vraag a In welke maand heeft Outdoor evenveel omgezet voor het vrijgezellenfeest als voor de teambuilding?
C43: maak keuze
C45: vraag b In welke maand heeft Outdoor de meeste arrangementen verkocht?
C46: maak keuze
C48: vraag c In welke maand waren de inkomsten van Outdoor het laagst?
C49: maak keuze

Sheet printblad
C3: ='blad 1'!C3 -> Naam | D3: ='blad 1'!D3 -> 0
C4: ='blad 1'!C4 -> Klas | D4: ='blad 1'!D4 -> 0
C6: ='blad 1'!C6 -> Verwachtte aantal verkochte broodjes 850 de prijs per broodje € 2,50
C8: ='blad 1'!C8 -> omzet | E8: ='blad 1'!E8 -> 0
C9: ='blad 1'!C9 -> inkoopwaarde van de omzet | E9: ='blad 1'!E9 -> 1275
C10: ='blad 1'!C10 -> personeelskosten | E10: ='blad 1'!E10 -> 120
C11: ='blad 1'!C11 -> overige kosten | E11: ='blad 1'!E11 -> 250
C13: ='blad 1'!C13 -> brutowinst | E13: ='blad 1'!E13 -> 0
C14: ='blad 1'!C14 -> nettowinst | E14: ='blad 1'!E14 -> 0
C17: ='blad 2'!C6 -> Bedrijfsresultaten over de maanden maart - november 2021
C19: vraag a | D19: ='blad 2'!C43 -> maak keuze
C20: vraag b | D20: ='blad 2'!C46 -> maak keuze
C21: vraag c | D21: ='blad 2'!C49 -> maak keuze

Sheet Grafiek omzet
H3: Toch voor kinderfeest ipv bedrijfsfeest gekozen, omdat bedrijfsfeest ook teambuilding is
B5: omzet per arrangement | H5: December - januari-Februari dicht
C7: teambuiding | D7: vrijgezellenfeest | E7: kinderfeestje
B9: maart | C9: =SUM(C20*25)*16 -> 22600 | D9: =SUM(D20*15)*24 -> 27000 | E9: =SUM(E20*10)*26 -> 8320
B10: april | C10: =SUM(C20*25)*22 -> 31075 | D10: =SUM(D20*15)*22 -> 24750 | E10: =SUM(E20*10)*52 -> 16640
B11: mei | C11: =SUM(C20*25)*31 -> 43787.5 | D11: =SUM(D20*15)*20 -> 22500 | E11: =SUM(E20*10)*31 -> 9920
B12: juni | C12: =SUM(C20*25)*26 -> 36725 | D12: =SUM(D20*15)*26 -> 29250 | E12: =SUM(E20*10)*26 -> 8320
B13: juli | C13: =SUM(C20*22500/C20/15.8)*15.8 -> 22500 | D13: =SUM(D20*15)*20 -> 22500 | E13: =SUM(E20*10)*15 -> 4800
B14: augustus | C14: =SUM(C20*25)*8 -> 11300 | D14: =SUM(D20*15)*28 -> 31500 | E14: =SUM(E20*10)*12 -> 3840
B15: september | C15: =SUM(C20*25)*26 -> 36725 | D15: =SUM(D20*15)*26 -> 29250 | E15: =SUM(E20*10)*45 -> 14400
B16: oktober | C16: =SUM(C20*25)*18 -> 25425 | D16: =SUM(D20*15)*18 -> 20250 | E16: =SUM(E20*10)*18 -> 5760
B17: november | C17: =SUM(C20*25)*12 -> 16950 | D17: =SUM(D20*15)*12 -> 13500 | E17: =SUM(E20*10)*12 -> 3840
C20: 56.5 | D20: 75 | E20: 32

Sheet Grafiek afzet
H3: Toch voor kinderfeest ipv bedrijfsfeest gekozen, omdat bedrijfsfeest ook teambuilding is
B5: Afzet per arrangement | H5: December - januari-Februari dicht
C7: teambuiding | D7: vrijgezellenfeest | E7: kinderfeestje
B9: maart | C9: =SUM(C20*25)*16 -> 400 | D9: =SUM(D20*15)*24 -> 360 | E9: =SUM(E20*10)*26 -> 260 | F9: =SUM(C9:E9) -> 1020
B10: april | C10: =SUM(C20*25)*26 -> 650 | D10: =SUM(D20*15)*22 -> 330 | E10: =SUM(E20*10)*55 -> 550 | F10: =SUM(C10:E10) -> 1530
B11: mei | C11: =SUM(C20*25)*31 -> 775 | D11: =SUM(D20*15)*20 -> 300 | E11: =SUM(E20*10)*31 -> 310 | F11: 1385
B12: juni | C12: =SUM(C20*25)*26 -> 650 | D12: =SUM(D20*15)*26 -> 390 | E12: =SUM(E20*10)*26 -> 260 | F12: 1300
B13: juli | C13: =SUM(C20*25)*15.8 -> 395 | D13: =SUM(D20*15)*20 -> 300 | E13: =SUM(E20*10)*15 -> 150 | F13: 845
B14: augustus | C14: =SUM(C20*25)*7 -> 175 | D14: =SUM(D20*15)*25 -> 375 | E14: =SUM(E20*10)*9 -> 90 | F14: 640
B15: september | C15: =SUM(C20*25)*24 -> 600 | D15: =SUM(D20*15)*26 -> 390 | E15: =SUM(E20*10)*45 -> 450 | F15: 1440
B16: oktober | C16: =SUM(C20*25)*18 -> 450 | D16: =SUM(D20*15)*18 -> 270 | E16: =SUM(E20*10)*18 -> 180 | F16: 900
B17: november | C17: =SUM(C20*25)*14 -> 350 | D17: =SUM(D20*15)*18 -> 270 | E17: =SUM(E20*10)*12 -> 120 | F17: 740
C20: 1 | D20: 1 | E20: 1
